Workbook

Sheet Daten
B2: Zu messen: Durchmesser A2
B3: Stichprobe | C3: Längen-messung | M3: Soll | N3: Obere Grenze | O3: Untere Grenze | Q3: Mittelwert
B4: 1 | C4: 1000.2 | M4: 30 | N4: 30.3 | O4: 29.7 | Q4: =AVERAGE($F$4:J$8) -> 
B5: 2 | C5: 999.8 | N5: 30.3 | O5: 29.7 | Q5: =AVERAGE($F$4:J$8) -> 
B6: 3 | C6: 1000.7 | N6: 30.3 | O6: 29.7 | Q6: =AVERAGE($F$4:J$8) -> 
B7: 4 | C7: 1000.1 | N7: 30.3 | O7: 29.7 | Q7: =AVERAGE($F$4:J$8) -> 
B8: 5 | C8: 1001.5 | N8: 30.3 | O8: 29.7 | Q8: =AVERAGE($F$4:J$8) -> 
B9: 6 | C9: 1000.5
B10: 7 | C10: 1001.3
B11: 8 | C11: 1001.9 | N11: S | O11: Dynamische OG | P11: Dynamische UG
B12: 9 | C12: 1001.8 | N12: =SQRT(((C4-Q4)^2+(C5-Q4)^2+(C6-Q4)^2+(C7-Q4)^2+(C8-Q4)^2+(D4-Q4)^2+(D5-Q4)^2+(D6-Q4)^2+(D7-Q4)^2+(D8-Q4)^2+(E4-Q4)^2+(E5-Q4)^2+(E6-Q4)^2+(E7-Q4)^2+(E8-Q4)^2)/14) ->  | O12: =M4+N12 ->  | P12: =M4-N12 -> 
B13: 10 | C13: 1002.2
B14: MW | C14: =AVERAGE(C4:C13) -> 1001 | D14: Mittelwert | N14: 0 | O14: 49.8
B15: STA | C15: =STDEVP(C4:C13) -> 0.8037412519 | D15: Standardabweichung | N15: 1 | O15: 49.8
B16: Soll | C16: 1000 | D16: Zielwert | N16: S Messschraube | O16: Obere Spec | P16: Untere Spec | Q16: Mittelwert | R16: Dynamisch UG | S16: Dynamisch OG | T16: Dynamisch UG | U16: Dynamisch OG | V16: MW+3Sigma | W16: MW-3Sigma
B17: Spec | C17: 3 | D17: Toleranz | N17: =SQRT(((C4-Q17)^2+(C5-Q17)^2+(C6-Q17)^2+(C7-Q17)^2+(C8-Q17)^2+(C9-Q17)^2+(C10-Q17)^2+(C11-Q17)^2+(C12-Q17)^2+(C13-Q17)^2)/10) -> 0.8037412519 | O17: =$C$16+$C$17 -> 1003 | P17: =$C$16-$C$17 -> 997 | Q17: =$C$14 -> 1001 | R17: =Q17-(1*($N$17)) -> 1000.196259 | S17: =Q17+(1*($N$17)) -> 1001.803741 | T17: =Q17-(2*($N$17)) -> 999.3925175 | U17: =Q17+(2*($N$17)) -> 1002.607483 | V17: =Q17-(3*($N$17)) -> 998.5887762 | W17: =Q17+(3*($N$17)) -> 1003.411224
O18: =$C$16+$C$17 -> 1003 | P18: =$C$16-$C$17 -> 997 | Q18: =$C$14 -> 1001 | R18: =Q18-(1*($N$17)) -> 1000.196259 | S18: =Q18+(1*($N$17)) -> 1001.803741 | T18: =Q18-(2*($N$17)) -> 999.3925175 | U18: =Q18+(2*($N$17)) -> 1002.607483 | V18: =Q18-(3*($N$17)) -> 998.5887762 | W18: =Q18+(3*($N$17)) -> 1003.411224
B19: Cp | C19: =2*C17/(2*3*C15) -> 1.244181504 | D19: Prozesspotential | O19: 1003 | P19: 997 | Q19: 1001 | R19: 1000.196259 | S19: 1001.803741 | T19: 999.3925175 | U19: 1002.607483 | V19: 998.5887762 | W19: 1003.411224
B20: Cpo | C20: =((C16+C17)-C14)/(3*C15) -> 0.8294543363 | O20: 1003 | P20: 997 | Q20: 1001 | R20: 1000.196259 | S20: 1001.803741 | T20: 999.3925175 | U20: 1002.607483 | V20: 998.5887762 | W20: 1003.411224
B21: Cpu | C21: =(-(C16-C17)+C14)/(3*C15) -> 1.658908673 | O21: 1003 | P21: 997 | Q21: 1001 | R21: 1000.196259 | S21: 1001.803741 | T21: 999.3925175 | U21: 1002.607483 | V21: 998.5887762 | W21: 1003.411224
B22: Cpk | C22: =MIN(C20:C21) -> 0.8294543363 | D22: Prozessfähigkeit | O22: 1003 | P22: 997 | Q22: 1001 | R22: 1000.196259 | S22: 1001.803741 | T22: 999.3925175 | U22: 1002.607483 | V22: 998.5887762 | W22: 1003.411224
O23: 1003 | P23: 997 | Q23: 1001 | R23: 1000.196259 | S23: 1001.803741 | T23: 999.3925175 | U23: 1002.607483 | V23: 998.5887762 | W23: 1003.411224
B24: 1 | C24: 30.04 | D24: 30.04 | E24: 30.001 | O24: 1003 | P24: 997 | Q24: 1001 | R24: 1000.196259 | S24: 1001.803741 | T24: 999.3925175 | U24: 1002.607483 | V24: 998.5887762 | W24: 1003.411224
B25: 2 | C25: 30.12 | D25: 30.12 | E25: 30.07 | O25: 1003 | P25: 997 | Q25: 1001 | R25: 1000.196259 | S25: 1001.803741 | T25: 999.3925175 | U25: 1002.607483 | V25: 998.5887762 | W25: 1003.411224
B26: 3 | C26: 29.98 | D26: 29.98 | E26: 29.94 | O26: 1003 | P26: 997 | Q26: 1001 | R26: 1000.196259 | S26: 1001.803741 | T26: 999.3925175 | U26: 1002.607483 | V26: 998.5887762 | W26: 1003.411224
B27: 4 | C27: 30.09 | D27: 30.09 | E27: 30.07 | O27: 1003 | P27: 997 | Q27: 1001 | R27: 1000.196259 | S27: 1001.803741 | T27: 999.3925175 | U27: 1002.607483 | V27: 998.5887762 | W27: 1003.411224
B28: 5 | C28: 30.11 | D28: 30.21 | E28: 30.07
B29: 6 | C29: 30.044 | D29: 30.044 | E29: 30.02
B30: 7 | C30: 29.973 | D30: 29.943 | E30: 29.933
B31: 8 | C31: 30.042 | D31: 30.042 | E31: 30.042
B32: 9 | C32: 30.064 | D32: 30.064 | E32: 30.014
B33: 10 | C33: 29.977 | D33: 29.949 | E33: 29.957
B34: 11 | C34: 29.998 | D34: 29.948 | E34: 29.958
B35: 12 | C35: 30.047 | D35: 30.047 | E35: 30.027
B36: 13 | C36: 30.146 | D36: 30.246 | E36: 30.101
B37: 14 | C37: 30.088 | D37: 30.12 | E37: 30.038
B38: 15 | C38: 30.023 | D38: 30.053 | E38: 30.003
B39: 16 | C39: 29.94445 | D39: 29.648 | E39: 29.90245
B40: 17 | C40: 30.051 | D40: 30.051 | E40: 30.031
B41: 18 | C41: 30.141 | D41: 30.141 | E41: 30.101
B42: 19 | C42: 30.07 | D42: 30.07 | E42: 30.03
B43: 20 | C43: 30.039 | D43: 30.039 | E43: 29.99
B44: MW | C44: =AVERAGE(C24:C43) -> 30.0493725 | D44: =AVERAGE(D24:D43) -> 30.04225 | E44: =AVERAGE(E24:E43) -> 30.0149225
B45: STA | C45: =STDEVP(C24:C43) -> 0.05508717064 | D45: =STDEVP(D24:D43) -> 0.1187412628 | E45: =STDEVP(E24:E43) -> 0.05402332014
B46: Soll | C46: 30 | D46: 30 | E46: 30
B47: Spec | C47: 0.3 | D47: 0.3 | E47: 0.3
B49: Cp | C49: =2*C47/(2*3*C45) -> 1.815304704 | D49: =2*D47/(2*3*D45) -> 0.8421672265 | E49: =2*E47/(2*3*E45) -> 1.851052467
B50: Cpo | C50: =((C46+C47)-C44)/(3*C45) -> 1.516550933 | D50: =((D46+D47)-D44)/(3*D45) -> 0.7235620088 | E50: =((E46+E47)-E44)/(3*E45) -> 1.758978032
B51: Cpu | C51: =(-(C46-C47)+C44)/(3*C45) -> 2.114058476 | D51: =(-(D46-D47)+D44)/(3*D45) -> 0.9607724443 | E51: =(-(E46-E47)+E44)/(3*E45) -> 1.943126901
B52: Cpk | C52: =MIN(C50:C51) -> 1.516550933 | D52: =MIN(D50:D51) -> 0.7235620088 | E52: =MIN(E50:E51) -> 1.758978032
B60: =C60/10 -> -0.8 | C60: =E60-D60 -> -8 | D60: 100 | E60: 92 | F60: =E60+1005 -> 1097 | G60: =1001+B60 -> 1000.2
B61: =C61/10 -> -1.2 | C61: =E61-D61 -> -12 | D61: 100 | E61: 88 | F61: =E61+1005 -> 1093 | G61: =1001+B61 -> 999.8
B62: -0.3 | C62: -3 | D62: 100 | E62: 97 | F62: 1102 | G62: 1000.7
B63: -0.9 | C63: -9 | D63: 100 | E63: 91 | F63: 1096 | G63: 1000.1
B64: 0.5 | C64: 5 | D64: 100 | E64: 105 | F64: 1110 | G64: 1001.5
B65: -0.5 | C65: -5 | D65: 100 | E65: 95 | F65: 1100 | G65: 1000.5
B66: 0.3 | C66: 3 | D66: 100 | E66: 103 | F66: 1108 | G66: 1001.3
B67: 0.9 | C67: 9 | D67: 100 | E67: 109 | F67: 1114 | G67: 1001.9
B68: 0.8 | C68: 8 | D68: 100 | E68: 108 | F68: 1113 | G68: 1001.8
B69: 1.2 | C69: 12 | D69: 100 | E69: 112 | F69: 1117 | G69: 1002.2

Sheet Tabelle
D7: Stichprobe | E7: Messwert [mm] | F7: Sollwert [mm] | G7: Toleranz [mm] | H7: Abweichung des Messwertes vom Sollwert [mm]
D8: 1 | E8: 1000.2 | F8: 1000.2 | G8: 2
D9: 2 | E9: 999.8 | G9: 2
D10: 3 | E10: 1000.7 | G10: 2
D11: 4 | E11: 1000.1 | G11: 2
D12: 5 | E12: 1001.5 | G12: 2
D13: 6 | E13: 1000.5 | G13: 2
D14: 7 | E14: 1001.3 | G14: 2
D15: 8 | E15: 1001.9 | G15: 2
D16: 9 | E16: 1001.8 | G16: 2
D17: 10 | E17: 1002.2 | G17: 2
